{"text_format":"1","workbook":"xlsx","n_sheets":6,"sheets":["INTRO","FORM_NC","PRESIDEA","FORM_C","Privacy","RIEPILOGO DATI"],"not_rendered":{"charts":0,"images":4,"macros":1,"external_links":0,"defined_names":9,"comments":0,"pivot_tables":0},"unopened":[],"bounds":{"document_bytes":16777216,"sheet_cells":100000,"rows_first":2000,"rows_last":500,"rows_between":2000,"halvings":0,"cell_chars":16384,"cell_head_chars":4096},"cells_cut":0,"cells_raw":0,"read":"whole","date_system":"1900"}

{"sheet":"INTRO","index":0,"n_rows":54,"n_cols":17,"rows_kept":54,"cut":false,"hidden":false,"merged":[[16,4,22,17],[9,4,12,17],[14,4,14,17],[25,10,25,11],[34,12,34,14],[36,12,36,14],[36,4,36,10],[34,4,34,10],[32,4,32,16],[53,7,53,11],[49,4,49,5],[51,4,51,5],[53,4,53,5],[34,16,34,17],[36,16,36,17],[45,7,45,11],[45,4,45,5],[47,4,47,5],[49,7,49,11],[51,7,51,11]]}
[]
[]
[]
[]
[]
[]
[null,null,null,null,"UNIONCAMERE - UNIVERSITAS MERCATORUM"]
[]
[]
[null,null,null,null,"AVVISO PUBBLICO PER LA RACCOLTA DI MANIFESTAZIONI DI INTERESSE \nPER L’ACCESSO AI SERVIZI DI ASSISTENZA TECNICO-SCIENTIFICA VOLTI A SOSTENERE L'INIZIATIVA\nSTART-UP IMPRENDITORIA SOCIALE\nPROMOSSA DALL’UNIONE ITALIANA DELLE CAMERE DI COMMERCIO IN COLLABORAZIONE CON UNIVERSITAS MERCATORUM"]
[]
[]
[]
[]
[null,null,null,null,"FORMULARIO DI PRESENTAZIONE DELL'IDEA"]
[]
[null,null,null,null,"ISTRUZIONI PER LA COMPILAZIONE E L'INVIO DEL FORMULARIO DI PRESENTAZIONE DELL'IDEA\n\n1. SALVARE IL FILE EXCEL “Presentazione dell’idea\" sul proprio PC e RINOMINARLO utilizzando le seguenti regole:- \n- in caso di gruppo proponente NON FORMALMENTE COSTITUITO --> nome file =  SIGLA PROVINCIA _ COGNOME LEADER  (es. RM_ROSSI)\n- in caso di gruppo proponente FORMALMENTE COSTITUITO --> nome file =  SIGLA PROVINCIA _ DENOMINAZIONE PROPONENTE (es. RM_ARCOBALENO)\n\n2. INDICARE LA DATA DI COMPILAZIONE E SELEZIONARE LA TIPOLOGIA DI SOGGETTO PROPONENTE \n\n3. COMPILARE LA SCHEDA CON I DATI ANAGRAFICI\n\n4. COMPILARE IL FORMULARIO DI PRESENTAZIONE DELL'IDEA IMPRENDITORIALE\n\n5. CONTROLLARE LA CORRETTA ED INTEGRALE COMPILAZIONE DEL FORMULARIO DI PRESENTAZIONE DELL’IDEA\n\n6. SALVARE IL FILE  COMPILATO\n\n7. ALLEGARE IL FILE EXCEL COMPILATO ALLA E-MAIL DI PRESENTAZIONE DELLA PROPRIA MANIFESTAZIONE DI INTERESSE UNITAMENTE ALLA DICHIARAZIONE DI INTERESSE (IN PDF) E AGLI ALTRI ALLEGATI IVI INDICATI E INVIARE A: IMPRESASOCIALE@LEGALMAIL.IT \n\nPer informazioni e assistenza alla compilazione: avvisoimpresa.sociale@unimercatorum.it\n"]
[]
[]
[]
[]
[]
[]
[]
[]
[null,null,null,null,"    DATA DI COMPILAZIONE:"]
[]
[]
[]
[]
[null,null,null,null,"1. SOGGETTO PROPONENTE"]
[]
[null,null,null,null,"Seleziona una tipologia di soggetto proponente"]
[]
[null,null,null,{"$f":"+$L$35","v":0},"Gruppo non formalmente costituito ",null,null,null,null,null,null,null,{"$f":"+IF(L35<>\"\",\"Vai al formulario >>\",\"\")","v":""},null,null,{"$f":"+IF(M35<>\"\",4,\"\")","v":""},{"$f":"+IF(P35<>\"\",\"<< Clicca qui\",\"\")","v":""}]
[]
[null,null,null,{"$f":"+$L$37","v":0},"Gruppo formalmente costituito \n(associazione, cooperativa non sociale, altro ente o società) ",null,null,null,null,null,null,null,{"$f":"+IF(L37<>\"\",\"Vai al formulario >>\",\"\")","v":""},null,null,{"$f":"+IF(M37<>\"\",4,\"\")","v":""},{"$f":"+IF(P37<>\"\",\"<< Clicca qui\",\"\")","v":""}]
[]
[]
[]
[]
[]
[]
[null,null,null,null,"          RIEPILOGO DATI GENERALI "]
[]
[null,null,null,null,"Provincia di operatività dell'idea:",null,null,{"$f":"+IF(PRESIDEA!H65=\"\",\"\",PRESIDEA!$H$65)","v":""}]
[]
[null,null,null,null,"Ambito di intervento dell'idea:"]
[]
[null,null,null,null,"Settore principale",null,null,{"$f":"+IF(PRESIDEA!H54=\"\",\"\",PRESIDEA!H54)","v":""}]
[]
[null,null,null,null,"Settore secondario (facoltativo)",null,null,{"$f":"+IF(PRESIDEA!H56=\"\",\"\",PRESIDEA!H56)","v":""}]
[]
[null,null,null,null,"Altro settore secondario (facoltativo)",null,null,{"$f":"+IF(PRESIDEA!H58=\"\",\"\",PRESIDEA!H58)","v":""}]

{"sheet":"FORM_NC","index":1,"n_rows":73,"n_cols":24,"rows_kept":73,"cut":false,"hidden":false,"merged":[[18,8,18,12],[42,8,42,16],[34,14,34,17],[40,14,40,17],[52,4,54,5],[43,4,43,6],[45,4,45,6],[52,12,52,15],[53,12,54,16],[44,4,44,6],[46,4,46,6],[46,8,46,11],[38,4,38,6],[40,4,40,6],[40,8,40,9],[42,4,42,6],[70,6,70,11],[34,8,34,12],[30,8,30,12],[30,4,30,6],[32,4,32,6],[32,8,32,9],[34,4,34,6],[32,11,32,16],[64,4,64,5],[60,4,60,5],[62,4,62,5],[60,8,60,12],[62,8,62,12],[64,8,64,12],[72,6,74,11],[9,4,12,17],[15,4,15,17],[48,4,48,6],[26,4,26,6],[28,4,28,6],[46,13,46,16],[36,8,36,12],[44,8,44,16],[38,8,38,16],[26,8,26,12],[28,8,28,12],[60,13,60,17],[62,13,62,17],[64,13,64,17],[66,8,66,12]]}
[]
[]
[]
[]
[]
[]
[null,null,null,null,{"$f":"+INTRO!E7","v":"UNIONCAMERE - UNIVERSITAS MERCATORUM"}]
[]
[]
[null,null,null,null,"AVVISO PUBBLICO PER LA RACCOLTA DI MANIFESTAZIONI DI INTERESSE \nPER L’ACCESSO AI SERVIZI DI ASSISTENZA TECNICO-SCIENTIFICA VOLTI A SOSTENERE L'INIZIATIVA\nSTART-UP IMPRENDITORIA SOCIALE\nPROMOSSA DALL’UNIONE ITALIANA DELLE CAMERE DI COMMERCIO IN COLLABORAZIONE CON UNIVERSITAS MERCATORUM"]
[]
[]
[]
[]
[]
[null,null,null,null,"FORMULARIO DI PRESENTAZIONE DELL'IDEA"]
[]
[]
[null,null,null,null,"Tipologia soggetto proponente:",null,null,null,"GRUPPO NON FORMALMENTE COSTITUITO"]
[]
[]
[]
[null,null,null,null,"2. DATI ANAGRAFICI DEL SOGGETTO PROPONENTE"]
[]
[null,null,null,null,"(Inserire i dati anagrafici del leader del gruppo proponente)"]
[]
[null,null,null,null,"Nome"]
[]
[null,null,null,null,"Cognome"]
[]
[null,null,null,null,"Luogo di Nascita",null,null,null,null,null,null,null,null,null,null,null,null,null,null,null,{"$f":"+TODAY()-I31","v":41465},{"$f":"+U31/365","v":113.60273972602739}]
[]
[null,null,null,null,"Data di Nascita",null,null,null,null,null,null,{"$f":"+IF(V33>18,\"\",\"Attenzione soggetto non maggiorenne\")","v":""},null,null,null,null,null,null,null,null,{"$f":"+TODAY()-I33","v":41465},{"$f":"+U33/365","v":113.60273972602739}]
[]
[null,null,null,null,"Codice Fiscale",null,null,null,null,null,null,null,null,null,{"$f":"+IF($I$35=\"\",\"\",$V$35)","v":""},null,null,null,null,null,16,{"$f":"+IF(LEN($I$35)<>$U$35,\"Attenzione: controllare i dati inseriti\",\"\")","v":"Attenzione: controllare i dati inseriti"}]
[]
[null,null,null,null,"Provincia di residenza",null,null,null,null,null,null,null,null,null,null,null,null,null,null,null,null,null,null,"Asti"]
[null,null,null,null,null,null,null,null,null,null,null,null,null,null,null,null,null,null,null,null,null,null,null,"Avellino"]
[null,null,null,null,"Indirizzo di residenza",null,null,null,null,null,null,null,null,null,null,null,null,null,null,null,null,null,null,"Brindisi"]
[null,null,null,null,null,null,null,null,null,null,null,null,null,null,null,null,null,null,null,null,null,null,null,"Campobasso"]
[null,null,null,null,"CAP",null,null,null,null,null,null,null,null,null,{"$f":"+IF($I$41=\"\",\"\",$V$41)","v":""},null,null,null,null,null,5,{"$f":"+IF(LEN($I$41)<>$U$41,\"Attenzione: controllare i dati inseriti\",\"\")","v":"Attenzione: controllare i dati inseriti"},null,"Catanzaro"]
[null,null,null,null,null,null,null,null,null,null,null,null,null,null,null,null,null,null,null,null,null,null,null,"Chieti"]
[null,null,null,null,"Comune",null,null,null,null,null,null,null,null,null,null,null,null,null,null,null,null,null,null,"Cremona"]
[null,null,null,null,null,null,null,null,null,null,null,null,null,null,null,null,null,null,null,null,null,null,null,"Crotone"]
[null,null,null,null,"Indirizzo e-mail",null,null,null,null,null,null,null,null,null,null,null,null,null,null,null,null,null,null,"Cuneo"]
[null,null,null,null,null,null,null,null,null,null,null,null,null,null,null,null,null,null,null,null,null,null,null,"Frosinone"]
[null,null,null,null,"Telefono",null,null,null,null,null,null,null,"Fax",null,null,null,null,null,null,null,null,null,null,"Genova"]
[null,null,null,null,null,null,null,null,null,null,null,null,null,null,null,null,null,null,null,null,null,null,null,"Imperia"]
[null,null,null,null,"Numero componenti del gruppo proponente rappresentato (compreso il leader)",null,null,null,null,null,null,null,null,null,null,null,null,null,null,null,null,null,null,"L'Aquila"]
[null,null,null,null,null,null,null,null,null,null,null,null,null,null,null,null,null,null,null,null,null,null,null,"Lecce"]
[null,null,null,null,null,null,null,null,null,null,null,null,null,null,null,null,null,null,null,null,null,null,null,"Matera"]
[null,null,null,null,null,null,null,null,null,null,null,null,null,null,null,null,null,null,null,null,null,null,null,"Messina"]
[null,null,null,null,"Informativa sul trattamento dei dati personali ai sensi del \nDlg 193/06 e ss mm e ii\n",null,4,"<< visualizza documento",null,null,null,null,"Ho letto l'informativa sulla Privacy ",null,null,null,null,null,null,null,null,null,null,"Milano"]
[null,null,null,null,null,null,null,null,null,null,null,null,"(Il mancato consenso al trattamento dei dati comporta l'impossibilità di acquisire e valutare la presentazione dell'idea)",null,null,null,null,null,null,"Si",null,null,null,"Modena"]
[null,null,null,null,null,null,null,null,null,null,null,null,null,null,null,null,null,null,null,"No",null,null,null,"Nuoro"]
[null,null,null,null,null,null,null,null,null,null,null,null,null,null,null,null,null,null,null,null,null,null,null,"Padova"]
[null,null,null,null,null,null,null,null,null,null,null,null,null,null,null,null,null,null,null,null,null,null,null,"Pavia"]
[null,null,null,null,"3. ALTRE INFORMAZIONI",null,null,null,null,null,null,null,null,null,null,null,null,null,null,null,null,null,null,"Perugia"]
[null,null,null,null,null,null,null,null,null,null,null,null,null,null,null,null,null,null,null,null,null,null,null,"Pordenone"]
[null,null,null,null,"Ambito di intervento dell'idea:",null,null,null,null,null,null,null,null,null,null,null,null,null,null,null,null,null,null,"Potenza"]
[null,null,null,null,"Settore principale",null,null,null,"Altro",null,null,null,null,null,null,null,null,null,null,null,null,null,null,"Ragusa"]
[null,null,null,null,null,null,null,null,null,null,null,null,null,null,null,null,null,null,null,null,null,null,null,"Reggio Calabria"]
[null,null,null,null,"Settore alternativo",null,null,null,null,null,null,null,null,null,null,null,null,null,null,null,null,null,null,"Reggio Emilia"]
[null,null,null,null,null,null,null,null,null,null,null,null,null,null,null,null,null,null,null,null,null,null,null,"Roma"]
[null,null,null,null,"Settore alternativo",null,null,null,null,null,null,null,null,null,null,null,null,null,null,null,null,null,null,"Rovigo"]
[null,null,null,null,null,null,null,null,null,null,null,null,null,null,null,null,null,null,null,null,null,null,null,"Siracusa"]
[null,null,null,null,"Provincia di operatività dell'idea:",null,null,null,null,null,null,null,null,null,null,null,null,null,null,null,null,null,null,"Taranto"]
[null,null,null,null,null,null,null,null,null,null,null,null,null,null,null,null,null,null,null,null,null,null,null,"Torino"]
[null,null,null,null,null,null,null,null,null,null,null,null,null,null,null,null,null,null,null,null,null,null,null,"Udine"]
[null,null,null,null,null,null,null,null,null,null,null,null,null,null,null,null,null,null,null,null,null,null,null,"Varese"]
[null,null,null,null,null,null,"Vai alla presentazione dell'idea",null,null,null,null,null,null,null,null,null,null,null,null,null,null,null,null,"Venezia"]
[null,null,null,null,null,null,null,null,null,null,null,null,null,null,null,null,null,null,null,null,null,null,null,"Verona"]
[null,null,null,null,null,null,"Torna alla pagina iniziale",null,null,null,null,null,null,null,null,null,null,null,null,null,null,null,null,"Vibo Valentia"]

{"sheet":"PRESIDEA","index":2,"n_rows":171,"n_cols":24,"rows_kept":171,"cut":false,"hidden":false,"merged":[[136,8,136,10],[18,6,18,7],[9,4,11,17],[15,4,15,17],[20,6,20,13],[106,4,106,17],[26,4,26,17],[66,4,66,17],[76,4,76,17],[86,4,86,17],[84,4,84,17],[94,4,94,17],[96,4,96,17],[104,4,104,17],[53,4,53,5],[53,13,53,17],[170,7,172,12],[148,7,148,12],[151,7,151,12],[74,4,74,17],[114,4,114,17],[128,8,128,10],[129,8,129,10],[130,8,130,10],[127,8,127,10],[116,4,116,17],[127,4,127,7],[128,4,128,7],[129,4,129,7],[130,4,130,7],[132,4,132,7],[133,4,133,7],[62,4,62,17],[53,7,53,11],[55,7,55,11],[64,7,64,11],[145,7,145,12],[57,7,57,11],[55,13,55,17],[57,13,57,17],[134,4,134,7],[135,4,135,7],[131,4,131,7],[131,8,131,10],[132,8,132,10],[133,8,133,10],[134,8,134,10],[135,8,135,10]]}
[]
[]
[]
[]
[]
[]
[null,null,null,null,{"$f":"+FORM_C!E7","v":"UNIONCAMERE - UNIVERSITAS MERCATORUM"}]
[]
[]
[null,null,null,null,"AVVISO PUBBLICO PER LA RACCOLTA DI MANIFESTAZIONI DI INTERESSE \nPER L’ACCESSO AI SERVIZI DI ASSISTENZA TECNICO-SCIENTIFICA VOLTI A SOSTENERE L'INIZIATIVA\nSTART-UP IMPRENDITORIA SOCIALE\nPROMOSSA DALL’UNIONE ITALIANA DELLE CAMERE DI COMMERCIO IN COLLABORAZIONE CON UNIVERSITAS MERCATORUM"]
[]
[]
[]
[]
[]
[null,null,null,null,"FORMULARIO DI PRESENTAZIONE DELL'IDEA"]
[]
[]
[null,null,null,null,"Data di compilazione:",null,{"$f":"+IF(INTRO!$K$26<>\"\",INTRO!$K$26,\"\")","v":""}]
[null,null,null,null,"Tipologia soggetto:","X",{"$f":"+IF(ISERROR(VLOOKUP($F$20,INTRO!$D$35:$K$37,2,0)),\"\",(VLOOKUP($F$20,INTRO!$D$35:$K$37,2,0)))","v":""}]
[null,null,null,null,{"$f":"+IF($G$20=INTRO!$E$35,\"Leader del Gruppo Proponente:\",\"Legale Rappresentante:\")","v":"Legale Rappresentante:"},null,{"$f":"+IF($G$20=INTRO!$E$35,FORM_NC!$I$27&\" \"&FORM_NC!$I$29,FORM_C!$I$65&\" \"&FORM_C!$I$67&\" (\"&FORM_C!$I$29&\")\")","v":"  ()"}]
[]
[null,null,null,null,"3. PRESENTAZIONE DELL'IDEA"]
[]
[null,null,null,null,"3.1 > TITOLO IDEA"]
[]
[]
[]
[]
[null,null,null,null,"3.2 > AMBITO DI INTERVENTO"]
[null,null,null,null,null,null,null,null,null,null,null,null,null,null,null,null,null,null,null,null,null,"Messina"]
[null,null,null,null,null,null,null,null,null,null,null,null,null,null,null,null,null,null,null,null,null,"Milano"]
[null,null,null,null,null,null,null,null,null,null,null,null,null,null,null,null,null,null,null,null,null,"Modena"]
[null,null,null,null,null,null,null,null,null,null,null,null,null,null,null,null,null,null,null,null,null,"Nuoro"]
[null,null,null,null,null,null,null,null,null,null,null,null,null,null,null,null,null,null,null,null,null,"Padova"]
[null,null,null,null,null,null,null,null,null,null,null,null,null,null,null,null,null,null,null,null,null,"Pavia"]
[null,null,null,null,null,null,null,null,null,null,null,null,null,null,null,null,null,null,null,null,null,"Perugia"]
[null,null,null,null,null,null,null,null,null,null,null,null,null,null,null,null,null,null,null,null,null,"Pordenone"]
[null,null,null,null,null,null,null,null,null,null,null,null,null,null,null,null,null,null,null,null,null,"Potenza"]
[null,null,null,null,null,null,null,null,null,null,null,null,null,null,null,null,null,null,null,null,null,"Ragusa"]
[null,null,null,null,null,null,null,null,null,null,null,null,null,null,null,null,null,null,null,null,null,"Reggio Calabria"]
[null,null,null,null,null,null,null,null,null,null,null,null,null,null,null,null,null,null,null,null,null,"Reggio Emilia"]
[null,null,null,null,null,null,null,null,null,null,null,null,null,null,null,null,null,null,null,null,null,"Roma"]
[null,null,null,null,null,null,null,null,null,null,null,null,null,null,null,null,null,null,null,null,null,"Rovigo"]
[null,null,null,null,null,null,null,null,null,null,null,null,null,null,null,null,null,null,null,null,null,"Siracusa"]
[null,null,null,null,null,null,null,null,null,null,null,null,null,null,null,null,null,null,null,null,null,"Taranto"]
[null,null,null,null,null,null,null,null,null,null,null,null,null,null,null,null,null,null,null,null,null,"Torino"]
[null,null,null,null,null,null,null,null,null,null,null,null,null,null,null,null,null,null,null,null,null,"Udine"]
[null,null,null,null,null,null,null,null,null,null,null,null,null,null,null,null,null,null,null,null,null,"Varese"]
[null,null,null,null,null,null,null,null,null,null,null,null,null,null,null,null,null,null,null,null,null,"Venezia"]
[null,null,null,null,null,null,null,null,null,null,null,null,null,null,null,null,null,null,null,null,null,"Verona"]
[null,null,null,null,null,null,null,null,null,null,null,null,null,null,null,null,null,null,null,null,null,"Vibo Valentia"]
[]
[null,null,null,null,"Settore principale",null,null,null,null,null,null,null,{"$f":"+IF(H54=\"Altro\",\"Specificare\",\"\")","v":""},null,null,null,null,null,null,null,null,null,"Assistenza sociale","Asti"]
[null,null,null,null,null,null,null,null,null,null,null,null,null,null,null,null,null,null,null,null,null,null,"Assistenza sanitaria","Avellino"]
[null,null,null,null,"Settore secondario (facoltativo)",null,null,null,null,null,null,null,{"$f":"+IF(H56=\"Altro\",\"Specificare\",\"\")","v":""},null,null,null,null,null,null,null,null,null,"Assistenza socio-sanitaria","Brindisi"]
[null,null,null,null,null,null,null,null,null,null,null,null,null,null,null,null,null,null,null,null,null,null,"Educazione, istruzione e formazione","Campobasso"]
[null,null,null,null,"Altro settore secondario (facoltativo)",null,null,null,null,null,null,null,{"$f":"+IF(H58=\"Altro\",\"Specificare\",\"\")","v":""},null,null,null,null,null,null,null,null,null,"Tutela ambientale e dell'ecosistema","Catanzaro"]
[null,null,null,null,null,null,null,null,null,null,null,null,null,null,null,null,null,null,null,null,null,null,"Tutela dei beni culturali","Chieti"]
[null,null,null,null,null,null,null,null,null,null,null,null,null,null,null,null,null,null,null,null,null,null,"Turismo sociale","Cremona"]
[null,null,null,null,"3.3 > TERRITORIO DI OPERATIVITA'",null,null,null,null,null,null,null,null,null,null,null,null,null,null,null,null,null,"Formazione universitaria e post-universitaria","Crotone"]
[null,null,null,null,null,null,null,null,null,null,null,null,null,null,null,null,null,null,null,null,null,null,"Ricerca ed erogazione di servizi culturali","Cuneo"]
[null,null,null,null,"Indicare l'ambito territoriale in cui l'impresa opererà: città, provincia, regione \n(massimo 500 caratteri, spazi inclusi)",null,null,null,null,null,null,null,null,null,null,null,null,null,null,null,null,null,"Formazione extrascolastica","Frosinone"]
[null,null,null,null,null,null,null,null,null,null,null,null,null,null,null,null,null,null,null,null,null,null,"Altro","Genova"]
[null,null,null,null,"Territorio di operatività dell'idea:",null,null,null,null,null,null,null,null,null,null,null,null,null,null,null,null,null,null,"Imperia"]
[null,null,null,null,null,null,null,null,null,null,null,null,null,null,null,null,null,null,null,null,null,null,null,"L'Aquila"]
[null,null,null,null,null,null,null,null,null,null,null,null,null,null,null,null,null,null,null,null,null,null,null,"Lecce"]
[null,null,null,null,null,null,null,null,null,null,null,null,null,null,null,null,null,null,null,null,null,null,null,"Matera"]
[null,null,null,null,null,null,null,null,null,null,null,null,null,null,null,"Contatore caratteri",null,{"$f":"+LEN($E$67)","v":0},null,null,null,null,null,"Messina"]
[null,null,null,null,null,null,null,null,null,null,null,null,null,null,null,"Caratteri disponibili",null,{"$f":"500-R69","v":500},null,null,null,null,null,"Milano"]
[null,null,null,null,null,null,null,null,null,null,null,null,null,null,null,null,null,null,null,null,null,null,null,"Modena"]
[null,null,null,null,null,null,null,null,null,null,null,null,null,null,null,null,null,null,null,null,null,null,null,"Nuoro"]
[null,null,null,null,"3.4 > SINTESI DELL'IDEA",null,null,null,null,null,null,null,null,null,null,null,null,null,null,null,null,null,null,"Padova"]
[null,null,null,null,null,null,null,null,null,null,null,null,null,null,null,null,null,null,null,null,null,null,null,"Pavia"]
[null,null,null,null,"Descrivere gli aspetti più qualificanti dell'idea che si intende presentare. \n(massimo 500 caratteri, spazi inclusi)",null,null,null,null,null,null,null,null,null,null,null,null,null,null,null,null,null,null,"Perugia"]
[null,null,null,null,null,null,null,null,null,null,null,null,null,null,null,null,null,null,null,null,null,null,null,"Pordenone"]
[null,null,null,null,null,null,null,null,null,null,null,null,null,null,null,null,null,null,null,null,null,null,null,"Potenza"]
[null,null,null,null,null,null,null,null,null,null,null,null,null,null,null,null,null,null,null,null,null,null,null,"Ragusa"]
[null,null,null,null,null,null,null,null,null,null,null,null,null,null,null,"Contatore caratteri",null,{"$f":"+LEN($E$77)","v":0},null,null,null,null,null,"Reggio Calabria"]
[null,null,null,null,null,null,null,null,null,null,null,null,null,null,null,"Caratteri disponibili",null,{"$f":"500-R79","v":500},null,null,null,null,null,"Reggio Emilia"]
[null,null,null,null,null,null,null,null,null,null,null,null,null,null,null,null,null,null,null,null,null,null,null,"Roma"]
[null,null,null,null,null,null,null,null,null,null,null,null,null,null,null,null,null,null,null,null,null,null,null,"Rovigo"]
[null,null,null,null,"3.5 > CONTESTO DI RIFERIMENTO, OBIETTIVI E TARGET",null,null,null,null,null,null,null,null,null,null,null,null,null,null,null,null,null,null,"Siracusa"]
[null,null,null,null,null,null,null,null,null,null,null,null,null,null,null,null,null,null,null,null,null,null,null,"Taranto"]
[null,null,null,null,"Illustrare gli elementi del contesto sociale su cui si vuole incidere, i destinatari, i bisogni e le problematiche che ci si propone di soddisfare attraverso l'idea. (massimo 2000 caratteri, spazi inclusi)",null,null,null,null,null,null,null,null,null,null,null,null,null,null,null,null,null,null,"Torino"]
[null,null,null,null,null,null,null,null,null,null,null,null,null,null,null,null,null,null,null,null,null,null,null,"Udine"]
[null,null,null,null,null,null,null,null,null,null,null,null,null,null,null,null,null,null,null,null,null,null,null,"Varese"]
[null,null,null,null,null,null,null,null,null,null,null,null,null,null,null,null,null,null,null,null,null,null,null,"Venezia"]
[null,null,null,null,null,null,null,null,null,null,null,null,null,null,null,"Contatore caratteri",null,{"$f":"+LEN($E$87)","v":0},null,null,null,null,null,"Verona"]
[null,null,null,null,null,null,null,null,null,null,null,null,null,null,null,"Caratteri disponibili",null,{"$f":"2000-R89","v":2000},null,null,null,null,null,"Vibo Valentia"]
[]
[]
[null,null,null,null,"3.6 > DESCRIZIONE DELL'IDEA"]
[]
[null,null,null,null,"Illustrare l'idea nelle sue principali articolazioni. Indicare anche le motivazioni alla base della scelta imprenditoriale\n(massimo 3000 caratteri, spazi inclusi)"]
[]
[]
[]
[null,null,null,null,null,null,null,null,null,null,null,null,null,null,null,"Contatore caratteri",null,{"$f":"+LEN($E$97)","v":0}]
[null,null,null,null,null,null,null,null,null,null,null,null,null,null,null,"Caratteri disponibili",null,{"$f":"3000-R99","v":3000}]
[]
[]
[null,null,null,null,"3.7 > SOGGETTO PROPONENTE"]
[]
[null,null,null,null,"Illustrare le attività attualmente svolte dal soggetto proponente (se già formalmente cosituito). Descrivere il profilo dei soggetti che partecipano all'idea, mettendo in rilievo le competenze possedute ai fini della sua attuazione e il ruolo che dovrebbero svolgere nella nuova impresa sociale. \n(massimo 2000 caratteri, spazi inclusi)"]
[]
[]
[]
[null,null,null,null,null,null,null,null,null,null,null,null,null,null,null,"Contatore caratteri",null,{"$f":"+LEN($E$107)","v":0}]
[null,null,null,null,null,null,null,null,null,null,null,null,null,null,null,"Caratteri disponibili",null,{"$f":"2000-R109","v":2000}]
[]
[]
[null,null,null,null,"3.8 > RETI E PARTNER"]
[]
[null,null,null,null,"Indicare eventuali partnership da attivare e/o reti a cui coordinarsi per la realizzazione dell'idea\n(massimo 1500 caratteri, spazi inclusi)"]
[]
[]
[]
[null,null,null,null,null,null,null,null,null,null,null,null,null,null,null,"Contatore caratteri",null,{"$f":"+LEN($E$117)","v":0}]
[null,null,null,null,null,null,null,null,null,null,null,null,null,null,null,"Caratteri disponibili",null,{"$f":"1500-R119","v":1500}]
[]
[]
[]
[null,null,null,null,"3.9 > FABBISOGNO DI INVESTIMENTI"]
[]
[null,null,null,null,"Indicare  (se già stimati)   gli investimenti necessari per lo start-up dell'impresa"]
[]
[null,null,null,null,"INVESTIMENTO PREVISTO",null,null,null,"COSTO STIMATO (IVA ESCLUSA)"]
[]
[]
[]
[]
[]
[]
[]
[]
[null,null,null,null,null,null,null,"TOTALE",{"$f":"+SUM(I129:J136)","v":0}]
[]
[]
[]
[]
[]
[]
[]
[]
[null,null,null,null,null,null,null,"Torna alla pagina iniziale"]
[]
[]
[null,null,null,null,null,null,null,"Torna ai dati anagrafici   - gruppo NON costituito"]
[]
[]
[null,null,null,null,null,null,null,"Torna ai dati anagrafici  - gruppo  costituito"]
[]
[]
[]
[]
[]
[]
[]
[]
[]
[]
[]
[]
[]
[]
[]
[]
[]
[]
[null,null,null,null,null,null,null,"Torna alla pagina iniziale"]

{"sheet":"FORM_C","index":3,"n_rows":131,"n_cols":23,"rows_kept":131,"cut":false,"hidden":false,"merged":[[86,4,88,5],[87,10,88,15],[96,13,96,17],[78,4,78,6],[78,8,78,11],[80,4,80,6],[82,4,82,6],[82,8,82,11],[80,8,80,13],[98,4,98,5],[98,7,98,11],[96,4,96,5],[96,7,96,11],[94,4,94,5],[94,7,94,11],[74,4,74,6],[64,8,64,13],[66,8,66,13],[74,8,74,13],[64,4,64,6],[66,4,66,6],[0,14,2,14],[70,8,70,9],[18,8,18,16],[30,4,30,6],[38,4,38,6],[36,4,36,6],[0,16,2,16],[54,8,54,9],[36,8,36,13],[28,4,28,6],[24,4,24,17],[28,8,28,13],[34,4,34,6],[62,4,62,6],[34,8,34,13],[32,4,32,6],[54,4,54,6],[30,15,30,18],[9,4,11,17],[15,4,15,17],[40,14,40,18],[51,14,51,18],[40,4,40,6],[49,8,49,13],[51,8,51,9],[105,7,105,12],[60,4,60,6],[60,8,60,11],[56,4,56,6],[44,4,44,6],[49,4,49,6],[44,8,44,13],[51,4,51,6],[46,4,46,6],[46,8,46,13],[68,4,68,6],[68,8,68,11],[70,4,70,6],[76,4,76,6],[72,4,72,6],[72,8,72,11],[130,7,132,12],[30,8,30,13],[32,8,32,13],[38,8,38,13],[40,8,40,9],[76,8,76,9],[98,13,98,17],[105,15,105,16],[100,7,100,11],[94,13,94,17],[72,15,72,18],[76,14,76,18],[60,12,60,13],[56,8,56,13],[58,8,58,11],[58,12,58,13]]}
[null,null,null,null,null,null,null,null,null,null,null,null,null,null,"Pagina Iniziale",null,"Presentazione dell'idea"]
[]
[]
[]
[]
[]
[null,null,null,null,{"$f":"+FORM_NC!E7","v":"UNIONCAMERE - UNIVERSITAS MERCATORUM"}]
[]
[]
[null,null,null,null,"AVVISO PUBBLICO PER LA RACCOLTA DI MANIFESTAZIONI DI INTERESSE \nPER L’ACCESSO AI SERVIZI DI ASSISTENZA TECNICO-SCIENTIFICA VOLTI A SOSTENERE L'INIZIATIVA\nSTART-UP IMPRENDITORIA SOCIALE\nPROMOSSA DALL’UNIONE ITALIANA DELLE CAMERE DI COMMERCIO IN COLLABORAZIONE CON UNIVERSITAS MERCATORUM"]
[]
[]
[]
[]
[]
[null,null,null,null,"FORMULARIO DI PRESENTAZIONE DELL'IDEA"]
[]
[]
[null,null,null,null,"Tipologia di soggetto proponente:",null,null,null,"GRUPPO FORMALMENTE COSTITUITO (associazione, cooperativa non sociale, altro ente o società)"]
[]
[]
[]
[null,null,null,null,"2. DATI ANAGRAFICI DEL SOGGETTO PROPONENTE"]
[]
[null,null,null,null,"Inserire i dati anagrafici del proponente e del rappresentante legale"]
[]
[]
[]
[null,null,null,null,"Denominazione/Ragione sociale"]
[]
[null,null,null,null,"Codice Fiscale",null,null,null,null,null,null,null,null,null,null,{"$f":"+IF($I31=\"\",\"\",$W31)","v":""},null,null,null,null,null,16,{"$f":"+IF(LEN($I31)<>$V31,\"Attenzione: controllare i dati inseriti\",\"\")","v":"Attenzione: controllare i dati inseriti"}]
[]
[null,null,null,null,"Partita IVA"]
[]
[null,null,null,null,"Sede legale                                         Indirizzo "]
[]
[null,null,null,null,"Provincia"]
[]
[null,null,null,null,"Comune"]
[]
[null,null,null,null,"CAP",null,null,null,null,null,null,null,null,null,{"$f":"+IF($I41=\"\",\"\",$W41)","v":""},null,null,null,null,null,null,5,{"$f":"+IF(LEN($I41)<>$V41,\"Attenzione: controllare i dati inseriti\",\"\")","v":"Attenzione: controllare i dati inseriti"}]
[]
[]
[]
[null,null,null,null,"Sede operativa                                    Indirizzo"]
[]
[null,null,null,null,"Provincia"]
[]
[]
[null,null,null,null,"Comune"]
[]
[null,null,null,null,"CAP",null,null,null,null,null,null,null,null,null,{"$f":"+IF($I52=\"\",\"\",$W52)","v":""},null,null,null,null,null,null,5,{"$f":"+IF(LEN($I52)<>$V52,\"Attenzione: controllare i dati inseriti\",\"\")","v":"Attenzione: controllare i dati inseriti"}]
[]
[]
[null,null,null,null,"Data di costituzione"]
[]
[null,null,null,null,"Indirizzo e-mail"]
[]
[null,null,null,null,"Telefono "]
[]
[null,null,null,null,"Fax"]
[]
[null,null,null,null,"DATI DEL RAPPRESENTANTE LEGALE"]
[]
[null,null,null,null,"Nome"]
[]
[null,null,null,null,"Cognome"]
[]
[null,null,null,null,"Luogo di nascita"]
[]
[null,null,null,null,"Data di Nascita",null,null,null,null,null,null,{"$f":"+IF(V71>18,\"\",\"Attenzione soggetto non maggiorenne\")","v":""},null,null,null,null,null,null,null,null,{"$f":"+TODAY()-I71","v":41465},{"$f":"+U71/365","v":113.60273972602739}]
[]
[null,null,null,null,"Codice Fiscale",null,null,null,null,null,null,null,null,null,null,{"$f":"+IF($I73=\"\",\"\",$W73)","v":""},null,null,null,null,null,16,{"$f":"+IF(LEN($I73)<>$V73,\"Attenzione: controllare i dati inseriti\",\"\")","v":"Attenzione: controllare i dati inseriti"}]
[]
[null,null,null,null,"Indirizzo di residenza"]
[]
[null,null,null,null,"CAP",null,null,null,null,null,null,null,null,null,{"$f":"+IF($I77=\"\",\"\",$W77)","v":""},null,null,null,null,null,null,5,{"$f":"+IF(LEN($I77)<>$V77,\"Attenzione: controllare i dati inseriti\",\"\")","v":"Attenzione: controllare i dati inseriti"}]
[]
[null,null,null,null,"Comune di Residenza"]
[]
[null,null,null,null,"Indirizzo e-mail "]
[]
[null,null,null,null,"Telefono"]
[]
[]
[]
[null,null,null,null,"Informativa sul trattamento dei dati personali ai sensi del Dlg 193/06 e ss mm e ii\n",null,4,"<< visualizza documento",null,null,"Ho letto l'informativa sulla Privacy*"]
[null,null,null,null,null,null,null,null,null,null,"(Il mancato consenso al trattamento dei dati comporta l'impossibilità di acquisire e valutare la presentazione dell'idea)",null,null,null,null,null,null,null,null,"Si"]
[null,null,null,null,null,null,null,null,null,null,null,null,null,null,null,null,null,null,null,"No"]
[]
[]
[null,null,null,null,"2 > ALTRE INFORMAZIONI"]
[]
[null,null,null,null,"Ambito di intervento dell'idea:"]
[null,null,null,null,"Settore principale",null,null,"Altro",null,null,null,null,{"$f":"+IF(H95=\"Altro\",\"Specificare\",\"\")","v":"Specificare"},"aaa",null,null,null,null,null,"Assistenza sociale",null,"Asti"]
[null,null,null,null,null,null,null,null,null,null,null,null,null,null,null,null,null,null,null,"Assistenza sanitaria",null,"Avellino"]
[null,null,null,null,"Settore alternativo",null,null,"Altro",null,null,null,null,{"$f":"+IF(H97=\"Altro\",\"Specificare\",\"\")","v":"Specificare"},"bbb",null,null,null,null,null,"Assistenza socio-sanitaria",null,"Brindisi"]
[null,null,null,null,null,null,null,null,null,null,null,null,null,null,null,null,null,null,null,"Educazione, istruzione e formazione",null,"Campobasso"]
[null,null,null,null,"Settore alternativo",null,null,"Altro",null,null,null,null,{"$f":"+IF(H99=\"Altro\",\"Specificare\",\"\")","v":"Specificare"},"xccc",null,null,null,null,null,"Tutela ambientale e dell'ecosistema",null,"Catanzaro"]
[null,null,null,null,null,null,null,null,null,null,null,null,null,null,null,null,null,null,null,"Tutela dei beni culturali",null,"Chieti"]
[null,null,null,null,"Provincia di operatività dell'idea:",null,null,null,null,null,null,null,null,null,null,null,null,null,null,"Turismo sociale",null,"Cremona"]
[null,null,null,null,null,null,null,null,null,null,null,null,null,null,null,null,null,null,null,"Formazione universitaria e post-universitaria",null,"Crotone"]
[null,null,null,null,null,null,null,null,null,null,null,null,null,null,null,null,null,null,null,"Ricerca ed erogazione di servizi culturali",null,"Cuneo"]
[null,null,null,null,null,null,null,null,null,null,null,null,null,null,null,null,null,null,null,"Formazione extrascolastica",null,"Frosinone"]
[null,null,null,null,null,null,null,null,null,null,null,null,null,null,null,null,null,null,null,"Altro",null,"Genova"]
[null,null,null,null,null,null,null,"Vai alla presentazione dell'idea",null,null,null,null,null,null,4,"<< Clicca qui",null,null,null,null,null,"Imperia"]
[null,null,null,null,null,null,null,null,null,null,null,null,null,null,null,null,null,null,null,null,null,"L'Aquila"]
[null,null,null,null,null,null,null,null,null,null,null,null,null,null,null,null,null,null,null,null,null,"Lecce"]
[null,null,null,null,null,null,null,null,null,null,null,null,null,null,null,null,null,null,null,null,null,"Matera"]
[null,null,null,null,null,null,null,null,null,null,null,null,null,null,null,null,null,null,null,null,null,"Messina"]
[null,null,null,null,null,null,null,null,null,null,null,null,null,null,null,null,null,null,null,null,null,"Milano"]
[null,null,null,null,null,null,null,null,null,null,null,null,null,null,null,null,null,null,null,null,null,"Modena"]
[null,null,null,null,null,null,null,null,null,null,null,null,null,null,null,null,null,null,null,null,null,"Nuoro"]
[null,null,null,null,null,null,null,null,null,null,null,null,null,null,null,null,null,null,null,null,null,"Padova"]
[null,null,null,null,null,null,null,null,null,null,null,null,null,null,null,null,null,null,null,null,null,"Pavia"]
[null,null,null,null,null,null,null,null,null,null,null,null,null,null,null,null,null,null,null,null,null,"Perugia"]
[null,null,null,null,null,null,null,null,null,null,null,null,null,null,null,null,null,null,null,null,null,"Pordenone"]
[null,null,null,null,null,null,null,null,null,null,null,null,null,null,null,null,null,null,null,null,null,"Potenza"]
[null,null,null,null,null,null,null,null,null,null,null,null,null,null,null,null,null,null,null,null,null,"Ragusa"]
[null,null,null,null,null,null,null,null,null,null,null,null,null,null,null,null,null,null,null,null,null,"Reggio Calabria"]
[null,null,null,null,null,null,null,null,null,null,null,null,null,null,null,null,null,null,null,null,null,"Reggio Emilia"]
[null,null,null,null,null,null,null,null,null,null,null,null,null,null,null,null,null,null,null,null,null,"Roma"]
[null,null,null,null,null,null,null,null,null,null,null,null,null,null,null,null,null,null,null,null,null,"Rovigo"]
[null,null,null,null,null,null,null,null,null,null,null,null,null,null,null,null,null,null,null,null,null,"Siracusa"]
[null,null,null,null,null,null,null,null,null,null,null,null,null,null,null,null,null,null,null,null,null,"Taranto"]
[null,null,null,null,null,null,null,null,null,null,null,null,null,null,null,null,null,null,null,null,null,"Torino"]
[null,null,null,null,null,null,null,null,null,null,null,null,null,null,null,null,null,null,null,null,null,"Udine"]
[null,null,null,null,null,null,null,null,null,null,null,null,null,null,null,null,null,null,null,null,null,"Varese"]
[null,null,null,null,null,null,null,null,null,null,null,null,null,null,null,null,null,null,null,null,null,"Venezia"]
[null,null,null,null,null,null,null,null,null,null,null,null,null,null,null,null,null,null,null,null,null,"Verona"]
[null,null,null,null,null,null,null,"Torna alla pagina iniziale",null,null,null,null,null,null,null,null,null,null,null,null,null,"Vibo Valentia"]

{"sheet":"Privacy","index":4,"n_rows":11,"n_cols":18,"rows_kept":11,"cut":false,"hidden":false,"merged":[[10,17,12,22],[6,17,8,22]]}
[]
[]
[]
[]
[]
[]
[null,null,null,null,null,null,null,null,null,null,null,null,null,null,null,null,null,"Torna ai dati anagrafici   - gruppo NON costituito"]
[]
[]
[]
[null,null,null,null,null,null,null,null,null,null,null,null,null,null,null,null,null,"Torna ai dati anagrafici  - gruppo  costituito"]

{"sheet":"RIEPILOGO DATI","index":5,"n_rows":51,"n_cols":17,"rows_kept":51,"cut":false,"hidden":false,"merged":[[50,4,50,5],[50,7,50,11],[15,6,15,13],[44,4,44,5],[44,7,44,11],[46,4,46,5],[46,7,46,11],[48,4,48,5],[48,7,48,11],[32,4,32,10],[32,12,32,14],[38,7,38,15],[32,16,32,17],[40,4,40,5],[40,7,40,11],[42,4,42,5],[38,4,38,5],[9,4,12,17],[14,4,14,17],[16,4,22,17],[28,4,28,16],[30,4,30,10],[30,12,30,14],[30,16,30,17]]}
[]
[]
[]
[]
[]
[]
[null,null,null,null,"UNIONCAMERE - UNIVERSITAS MERCATORUM"]
[]
[]
[null,null,null,null,"AVVISO PUBBLICO PER LA RACCOLTA DI MANIFESTAZIONI DI INTERESSE \nPER L’ACCESSO AI SERVIZI DI ASSISTENZA TECNICO-SCIENTIFICA VOLTI A SOSTENERE L'INIZIATIVA\nSTART-UP IMPRENDITORIA SOCIALE\nPROMOSSA DALL’UNIONE ITALIANA DELLE CAMERE DI COMMERCIO IN COLLABORAZIONE CON UNIVERSITAS MERCATORUM"]
[]
[]
[]
[]
[null,null,null,null,"FORMULARIO DI PRESENTAZIONE DELL'IDEA"]
[null,null,null,null,null,null,"RIEPILOGO DATI GENERALI"]
[null,null,null,null,"\n'ISTRUZIONI DI COMPILAZIONE \n\n'-  SALVARE IL FILE EXCEL SUL PROPRIO PC E RINOMINARLO\n\n -  SELEZIONARE LA TIPOLOGIA DI SOGGETTO PROPONENTE\n -  COMPILARE LA SCHEDA CON I DATI ANAGRAFICI\n -  COMPILARE IL FORMULARIO DI PRESENTAZIONE DELL'IDEA IMPRENDITORIALE\n \n'-  CONTROLLARE LA CORRETTA ED INTEGRALE COMPILAZIONE DEL FORMULARIO\n -  ALLEGARE IL FILE EXCEL COMPILATO ALLA E-MAIL DI PRESENTAZIONE DELLA PROPRIA MANIFESTAZIONE DI INTERESSE"]
[]
[]
[]
[]
[]
[]
[]
[]
[]
[null,null,null,null,"1. SOGGETTO PROPONENTE"]
[]
[null,null,null,null,"Seleziona una tipologia di soggetto proponente"]
[]
[null,null,null,{"$f":"+$L$31","v":0},"Gruppo non formalmente costituito ",null,null,null,null,null,null,null,{"$f":"+IF(L31<>\"\",\"Vai al formulario >>\",\"\")","v":""},null,null,{"$f":"+IF(M31<>\"\",4,\"\")","v":""},{"$f":"+IF(P31<>\"\",\"<< Clicca qui\",\"\")","v":""}]
[]
[null,null,null,{"$f":"+$L$33","v":0},"Gruppo formalmente costituito \n(associazione, cooperativa non sociale, altro ente o società) ",null,null,null,null,null,null,null,{"$f":"+IF(L33<>\"\",\"Vai al formulario >>\",\"\")","v":""},null,null,{"$f":"+IF(M33<>\"\",4,\"\")","v":""},{"$f":"+IF(P33<>\"\",\"<< Clicca qui\",\"\")","v":""}]
[]
[]
[]
[]
[]
[null,null,null,null,"Soggetto proponente ",null,null,{"$f":"+PRESIDEA!$G$21","v":"  ()"}]
[]
[null,null,null,null,"Territorio di operatività dell'idea:",null,null,{"$f":"+IF(PRESIDEA!H65=\"\",\"\",PRESIDEA!$H$65)","v":""}]
[]
[null,null,null,null,"Ambito di intervento dell'idea:"]
[]
[null,null,null,null,"Settore principale",null,null,{"$f":"+IF(PRESIDEA!H54=\"\",\"\",PRESIDEA!H54)","v":""}]
[]
[null,null,null,null,"Settore secondario (facoltativo)",null,null,{"$f":"+IF(PRESIDEA!H56=\"\",\"\",PRESIDEA!H56)","v":""}]
[]
[null,null,null,null,"Altro settore secondario (facoltativo)",null,null,{"$f":"+IF(PRESIDEA!H58=\"\",\"\",PRESIDEA!H58)","v":""}]
[]
[null,null,null,null,"Data di compilazione",null,null,{"$f":"+IF(INTRO!$K$26=\"\",\"\",INTRO!$K$26)","v":""}]